[Event "Queens Festival Final-D 2022"]
[Site "Tornelo"]
[Date "2022.06.25"]
[Round "11.3"]
[White "Rozas Lazcano, Valeska"]
[Black "Jiang, Tianyu"]
[Result "0-1"]
[ECO "B23"]
[WhiteElo "1551"]
[BlackElo "1502"]
[Annotator "NA RC"]
[PlyCount "86"]
[EventDate "2022.06.24"]
[EventType "tourn"]
[EventCountry "NET"]
[SourceTitle "playchess.com"]
[Source "ChessBase"]
[SourceQuality "1"]
[TimeControl "180+2"]

1. e4 {[%emt 0:00:02]} c5 {[%emt 0:00:04]} 2. Nc3 {[%emt 0:00:02]} Nc6 {[%emt 0:00:03]} 3. Bb5 {[%emt 0:00:02]} Nd4 {[%emt 0:00:01]} 4. Nf3 {[%emt 0:00:03]} Nxb5 {[%emt 0:00:02]} 5. Nxb5 {[%emt 0:00:01]} a6 {[%emt 0:00:01]} 6. Nc3 {[%emt 0:00:02]} e6 {[%emt 0:00:01]} 7. d4 {[%emt 0:00:01]} cxd4 {[%emt 0:00:00]} 8. Nxd4 {[%emt 0:00:02]} Qc7 {[%emt 0:00:01]} 9. Be3 {[%emt 0:00:06]} Nf6 {[%emt 0:00:01]} 10. a3 {[%emt 0:00:04]} b5 {[%emt 0:00:09]} 11. h3 {[%emt 0:00:06]} Bb7 {[%emt 0:00:01]} 12. f3 {[%emt 0:00:01]} Bc5 {[%emt 0:00:03]} 13. Qd3 {[%emt 0:00:49]} Rc8 {[%emt 0:00:18]} 14. Rd1 {[%emt 0:00:23]} O-O {[%emt 0:00:08]} 15. Nb3 {[%emt 0:00:12]} Qg3+ {[%emt 0:00:07]} 16. Kf1 {[%emt 0:00:08]} Bxe3 {[%emt 0:00:07]} 17. Qxe3 {[%emt 0:00:02]} d5 {[%emt 0:00:08]} 18. e5 {[%emt 0:00:02]} Nd7 {[%emt 0:00:16]} 19. Re1 {[%emt 0:00:10]} Qg6 {[%emt 0:00:02]} 20. Nd4 {[%emt 0:00:03]} Nb6 {[%emt 0:00:06]} 21. b3 {[%emt 0:00:14]} Nd7 {[%emt 0:00:13]} 22. Nce2 {[%emt 0:00:05]} h6 {[%emt 0:00:33]} 23. Kf2 {[%emt 0:00:02]} Qg5 {[%emt 0:00:10]} 24. f4 {[%emt 0:00:11]} Qe7 {[%emt 0:00:01]} 25. Ra1 {[%emt 0:00:08]} Nc5 {[%emt 0:00:04]} 26. Ng3 {[%emt 0:00:03]} f6 {[%emt 0:00:25]} 27. Rhe1 {[%emt 0:00:04]} fxe5 {[%emt 0:00:08]} 28. Qxe5 {[%emt 0:00:04]} Qf6 {[%emt 0:00:34]} 29. Qxf6 {[%emt 0:00:27]} Rxf6 {[%emt 0:00:00]} 30. Nh5 {[%emt 0:00:02]} Rf7 {[%emt 0:00:03]} 31. Nxe6 {[%emt 0:00:14]} Nxe6 {[%emt 0:00:02]} 32. Rxe6 {[%emt 0:00:01]} Rxc2+ {[%emt 0:00:01]} 33. Kg3 {[%emt 0:00:02]} Rc3+ {[%emt 0:00:02]} 34. Kg4 {[%emt 0:00:02]} Bc8 {[%emt 0:00:03]} 35. f5 {[%emt 0:00:02]} Bxe6 {[%emt 0:00:03]} 36. fxe6 {[%emt 0:00:01]} Re7 {[%emt 0:00:01]} 37. Nf4 {[%emt 0:00:03]} Rxb3 {[%emt 0:00:06]} 38. Rd1 {[%emt 0:00:01]} g5 {[%emt 0:00:04]} 39. Nxd5 {[%emt 0:00:03]} Rxe6 {[%emt 0:00:01]} 40. Kf5 {[%emt 0:00:02]} Re2 {[%emt 0:00:05]} 41. g4 {[%emt 0:00:04]} Rf3+ {[%emt 0:00:03]} 42. Kg6 {[%emt 0:00:02]} Re6+ {[%emt 0:00:01]} 43. Nf6+ {[%emt 0:00:07]} Rexf6+ {[%emt 0:00:01]} 0-1

[Event "Queens Festival Final-D 2022"]
[Site "Tornelo"]
[Date "2022.06.25"]
[Round "11.4"]
[White "Shah, Riya"]
[Black "Vujovic, Vera"]
[Result "0-1"]
[ECO "D00"]
[WhiteElo "1559"]
[BlackElo "1353"]
[Annotator "NA RC"]
[PlyCount "98"]
[EventDate "2022.06.24"]
[EventType "tourn"]
[EventCountry "NET"]
[SourceTitle "playchess.com"]
[Source "ChessBase"]
[SourceQuality "1"]
[TimeControl "180+2"]

1. d4 {[%emt 0:00:02]} d5 {[%emt 0:00:06]} 2. e3 {[%emt 0:00:02]} c5 {[%emt 0:00:03]} 3. c3 {[%emt 0:00:02]} Nc6 {[%emt 0:00:02]} 4. Bd3 {[%emt 0:00:01]} e6 {[%emt 0:00:01]} 5. f4 {[%emt 0:00:02]} c4 {[%emt 0:00:01]} 6. Bc2 {[%emt 0:00:01]} b5 {[%emt 0:00:02]} 7. a4 {[%emt 0:00:03]} b4 {[%emt 0:00:01]} 8. b3 {[%emt 0:00:04]} bxc3 {[%emt 0:00:02]} 9. Nxc3 {[%emt 0:00:05]} Bb4 {[%emt 0:00:01]} 10. Bd2 {[%emt 0:00:01]} Qa5 {[%emt 0:00:02]} 11. Nb1 {[%emt 0:00:06]} c3 {[%emt 0:00:05]} 12. Bc1 {[%emt 0:00:05]} f6 {[%emt 0:00:02]} 13. Ne2 {[%emt 0:00:01]} e5 {[%emt 0:00:06]} 14. fxe5 {[%emt 0:00:03]} fxe5 {[%emt 0:00:02]} 15. O-O {[%emt 0:00:08]} Nf6 {[%emt 0:00:05]} 16. Qd3 {[%emt 0:00:09]} e4 {[%emt 0:00:04]} 17. Qb5 {[%emt 0:00:02]} Qxb5 {[%emt 0:00:16]} 18. axb5 {[%emt 0:00:02]} Ne7 {[%emt 0:00:01]} 19. Nexc3 {[%emt 0:00:02]} Bxc3 {[%emt 0:00:02]} 20. Nxc3 {[%emt 0:00:02]} O-O {[%emt 0:00:01]} 21. Ba3 {[%emt 0:00:01]} Re8 {[%emt 0:00:03]} 22. Bxe7 {[%emt 0:00:08]} Rxe7 {[%emt 0:00:02]} 23. b6 {[%emt 0:00:07]} a6 {[%emt 0:00:21]} 24. Nb5 {[%emt 0:00:07]} Rb7 {[%emt 0:00:17]} 25. Nc7 {[%emt 0:00:06]} Rab8 {[%emt 0:00:01]} 26. Nxa6 {[%emt 0:00:02]} Ra8 {[%emt 0:00:01]} 27. Nc5 {[%emt 0:00:06]} Rxa1 {[%emt 0:00:04]} 28. Rxa1 {[%emt 0:00:04]} Rxb6 {[%emt 0:00:01]} 29. Ra8 {[%emt 0:00:02]} Rc6 {[%emt 0:00:01]} 30. Bd1 {[%emt 0:00:13]} Kf7 {[%emt 0:00:05]} 31. Ra7+ {[%emt 0:00:02]} Kg6 {[%emt 0:00:04]} 32. b4 {[%emt 0:00:15]} Rb6 {[%emt 0:00:06]} 33. Ra4 {[%emt 0:00:10]} Bg4 {[%emt 0:00:10]} 34. Bb3 {[%emt 0:00:10]} Be2 {[%emt 0:00:11]} 35. Ra6 {[%emt 0:00:12]} Bxa6 {[%emt 0:00:02]} 36. Nxa6 {[%emt 0:00:02]} Rxa6 {[%emt 0:00:01]} 37. b5 {[%emt 0:00:01]} Rb6 {[%emt 0:00:01]} 38. Ba4 {[%emt 0:00:03]} Ng4 {[%emt 0:00:02]} 39. Kf1 {[%emt 0:00:04]} Nxe3+ {[%emt 0:00:02]} 40. Ke2 {[%emt 0:00:01]} Nxg2 {[%emt 0:00:01]} 41. Kd2 {[%emt 0:00:03]} e3+ {[%emt 0:00:02]} 42. Ke2 {[%emt 0:00:02]} Kf5 {[%emt 0:00:01]} 43. Kf3 {[%emt 0:00:02]} Re6 {[%emt 0:00:10]} 44. Bc2+ {[%emt 0:00:03]} Kf6 {[%emt 0:00:04]} 45. Bxh7 {[%emt 0:00:03]} e2 {[%emt 0:00:02]} 46. Bg8 {[%emt 0:00:04]} Re3+ {[%emt 0:00:04]} 47. Kxg2 {[%emt 0:00:02]} e1=Q {[%emt 0:00:02]} 48. Bxd5 {[%emt 0:00:02]} Qd2+ {[%emt 0:00:02]} 49. Kf1 {[%emt 0:00:05]} Re1# {[%emt 0:00:01]} 0-1

[Event "Queens Festival Final-D 2022"]
[Site "Tornelo"]
[Date "2022.06.25"]
[Round "11.5"]
[White "Mak, Xiu Ning Charlene"]
[Black "Aydogan, Arya"]
[Result "1-0"]
[ECO "C54"]
[WhiteElo "1573"]
[BlackElo "1409"]
[Annotator "NA RC"]
[PlyCount "91"]
[EventDate "2022.06.24"]
[EventType "tourn"]
[EventCountry "NET"]
[SourceTitle "playchess.com"]
[Source "ChessBase"]
[SourceQuality "1"]
[TimeControl "180+2"]

1. e4 {[%emt 0:00:02]} e5 {[%emt 0:00:04]} 2. Nf3 {[%emt 0:00:03]} Nc6 {[%emt 0:00:02]} 3. Bc4 {[%emt 0:00:03]} Bc5 {[%emt 0:00:02]} 4. c3 {[%emt 0:00:01]} Nf6 {[%emt 0:00:01]} 5. d3 {[%emt 0:00:02]} d6 {[%emt 0:00:04]} 6. Bb3 {[%emt 0:00:03]} Be6 {[%emt 0:00:02]} 7. h3 {[%emt 0:00:04]} Bxb3 {[%emt 0:00:03]} 8. axb3 {[%emt 0:00:03]} Bb6 {[%emt 0:00:03]} 9. Nbd2 {[%emt 0:00:04]} d5 {[%emt 0:00:02]} 10. Qe2 {[%emt 0:00:04]} O-O {[%emt 0:00:04]} 11. Nf1 {[%emt 0:00:07]} Qe7 {[%emt 0:00:07]} 12. Ng3 {[%emt 0:00:03]} dxe4 {[%emt 0:00:06]} 13. dxe4 {[%emt 0:00:03]} Qe6 {[%emt 0:00:05]} 14. b4 {[%emt 0:00:09]} Ne7 {[%emt 0:00:02]} 15. O-O {[%emt 0:00:04]} c6 {[%emt 0:00:08]} 16. Bg5 {[%emt 0:00:10]} Ng6 {[%emt 0:00:03]} 17. Nf5 {[%emt 0:00:04]} Nf4 {[%emt 0:00:07]} 18. Bxf4 {[%emt 0:00:04]} exf4 {[%emt 0:00:01]} 19. Rfe1 {[%emt 0:00:07]} g6 {[%emt 0:00:06]} 20. N5d4 {[%emt 0:00:04]} Qe7 {[%emt 0:00:06]} 21. Qd2 {[%emt 0:00:23]} Bc7 {[%emt 0:00:07]} 22. e5 {[%emt 0:00:12]} Nd5 {[%emt 0:00:10]} 23. c4 {[%emt 0:00:07]} Nxb4 {[%emt 0:00:14]} 24. Re4 {[%emt 0:00:11]} Rfd8 {[%emt 0:00:20]} 25. Qxf4 {[%emt 0:00:03]} c5 {[%emt 0:00:11]} 26. Nb5 {[%emt 0:00:07]} Nd3 {[%emt 0:00:12]} 27. Qe3 {[%emt 0:00:07]} Nxb2 {[%emt 0:00:15]} 28. Nxc7 {[%emt 0:00:18]} Qxc7 {[%emt 0:00:03]} 29. Qh6 {[%emt 0:00:19]} Re8 {[%emt 0:00:23]} 30. Ng5 {[%emt 0:00:22]} f5 {[%emt 0:00:09]} 31. exf6 {[%emt 0:00:01]} Rxe4 {[%emt 0:00:04]} 32. f7+ {[%emt 0:00:02]} Qxf7 {[%emt 0:00:03]} 33. Nxf7 {[%emt 0:00:01]} Kxf7 {[%emt 0:00:01]} 34. Qxh7+ {[%emt 0:00:01]} Kf6 {[%emt 0:00:01]} 35. Qxb7 {[%emt 0:00:06]} Rd8 {[%emt 0:00:07]} 36. Qxe4 {[%emt 0:00:03]} Nd3 {[%emt 0:00:04]} 37. Rd1 {[%emt 0:00:07]} Nxf2 {[%emt 0:00:14]} 38. Qh4+ {[%emt 0:00:06]} g5 {[%emt 0:00:01]} 39. Qxf2+ {[%emt 0:00:04]} Ke7 {[%emt 0:00:02]} 40. Qxc5+ {[%emt 0:00:01]} Ke8 {[%emt 0:00:01]} 41. Qe5+ {[%emt 0:00:02]} Kf7 {[%emt 0:00:03]} 42. Rxd8 {[%emt 0:00:01]} Kg6 {[%emt 0:00:02]} 43. h4 {[%emt 0:00:03]} gxh4 {[%emt 0:00:01]} 44. Rd6+ {[%emt 0:00:01]} Kh7 {[%emt 0:00:03]} 45. Qe7+ {[%emt 0:00:01]} Kg8 {[%emt 0:00:01]} 46. Rd8# {[%emt 0:00:00]} 1-0